Cogmind - Beta 15 @@@ ROGUE MODE // 2025.06.06 @ 15:25:38 // Winter2019/RPGLIKE Player: Jack Result: Destroyed by G-47 Trooper with Particle Gun Performance ------------- Evolutions (3) 1500 Regions Visited (4) 800 Robots Destroyed (30) 150 Value Destroyed (636) 636 Prototype IDs (2) 40 Alien Tech Used (0) 0 Bonus (19) 19 TOTAL SCORE: 3145 Bonus ------- High Alert Combat Kills 19 Cogmind --------- Core Integrity 0/600 Matter 290/300 Energy 115/125 System Corruption 0% Temperature Cool (9) Movement Flying (37) Location -7/Factory Parts ------- > --- POWER (1) -------- Light Ion Engine > --- PROPULSION (2) --- Flight Unit Flight Unit > --- UTILITY (3) ------ Microactuators Microactuators Microactuators > --- WEAPON (2) ------- Greatsword > --- INVENTORY (0) ---- (None) Peak State ------------ > --- POWER ------------ Light Ion Engine > --- PROPULSION ------- Flight Unit Flight Unit > --- UTILITY ---------- Microactuators Microactuators Microactuators > --- WEAPON ----------- Greatsword > --- INVENTORY -------- (None) [Rating: 23] Favorites ----------- Power Light Ion Engine Engine Light Ion Engine Propulsion Flight Unit Flight Unit Flight Unit Utility Microactuators Device Microactuators Weapon Light Assault Rifle Ballistic Gun Light Assault Rifle Slashing Weapon Greatsword Build | -11 -10 -9 -8 -7 ------- Run | Yrd Mat Mat Mat Fac Slots Evolved 4 | 2 . . . 2 Power . | . . . . . Propulsion 1 | 1 . . . . Utility 2 | . . . . 2 Weapon 1 | 1 . . . . Parts Attached 20 | 2 2 2 10 4 Power 2 | . . . 2 . Engine 2 | . . . 2 . Core . | . . . . . Reactor . | . . . . . Propulsion 7 | . 2 2 3 . Treads . | . . . . . Leg . | . . . . . Wheel . | . . . . . Hover . | . . . . . Flight 7 | . 2 2 3 . Utility 3 | . . . . 3 Device 3 | . . . . 3 Storage . | . . . . . Processor . | . . . . . Hackware . | . . . . . Protection . | . . . . . Artifact . | . . . . . Weapon 8 | 2 . . 5 1 Energy Gun . | . . . . . Energy Cannon . | . . . . . Ballistic Gun 7 | 2 . . 5 . Ballistic Cannon . | . . . . . Launcher . | . . . . . Special Weapon . | . . . . . Impact Weapon . | . . . . . Slashing Weapon 1 | . . . . 1 Piercing Weapon . | . . . . . Special Melee Weapon . | . . . . . Unidentified Prototypes . | . . . . . Parts Lost . | . . . . . Power . | . . . . . Propulsion . | . . . . . Utility . | . . . . . Weapon . | . . . . . Highest Loss Streak . | . . . . . To Critical Strikes . | . . . . . Average Backups . | . . . . . Power . | . . . . . Propulsion . | . . . . . Utility . | . . . . . Weapon . | . . . . . Tool/Special . | . . . . . Unused Backups . | . . . . . Power . | . . . . . Propulsion . | . . . . . Utility . | . . . . . Weapon . | . . . . . Tool/Special . | . . . . . Average Slot Usage (%) 68 | . 40 66 70 83 Engine 4 | . . . 4 15 Flight 29 | . 7 33 32 31 Device 1 | . . . . 7 Ballistic Gun 31 | . 33 33 33 24 Peak Build Rating 23 | 2 4 6 9 23 Average Rating 6 | 1 2 4 7 9 On Entrance 3 | . 2 4 6 5 Naked Turns . | . . . . . Heaviest Build 14 | 3 3 3 9 14 Greatest Support 18 | 3 8 8 13 18 Greatest Overweight (x) 1 | . . . 1 . Average Overweight (x) . | . . . . . Largest Inventory Capacity . | . . . . . Average Capacity . | . . . . . Most Carried . | . . . . . Average Carried . | . . . . . Final Capacity . | . . . . . Final Carried . | . . . . . Class Distribution -------------------- 47% | Hacker-Mutant 43% | Hacker-Sprinter 9% | Scavenger-Mutant Dominant Class ---------------- Hacker-Mutant | -10/Materials Hacker-Mutant | -9/Materials Hacker-Sprinter | -8/Materials Hacker-Mutant | -7/Factory Resources | -11 -10 -9 -8 -7 ----------- Run | Yrd Mat Mat Mat Fac Matter Collected 889 | 101 20 156 582 30 Remotely . | . . . . . Salvage Created 622 | . 19 93 443 67 Parts 67 | . 4 14 48 1 Haulers Intercepted . | . . . . . Recyclers Shooed . | . . . . . Parts Field Recycled . | . . . . . Retrieved Matter . | . . . . . Parts Self-Destructed . | . . . . . Prevented . | . . . . . Kills | -11 -10 -9 -8 -7 ------- Run | Yrd Mat Mat Mat Fac Combat Hostiles Destroyed 29 | . 3 3 22 1 Melee 1 | . . . . 1 Guns 28 | . 3 3 22 . Classes Destroyed 4 | . 1 3 . . Worker 1 | . . 1 . . Swarmer 19 | . 3 . 16 . Grunt 4 | . . 1 2 1 Sentry 6 | . . 2 4 . Best Kill Streak 8 | . 3 3 8 1 Combat Bots Only 8 | . 3 2 8 1 Max Kills in Single Turn 2 | . 1 1 2 1 Gunslinging . | . . . . . Exploded . | . . . . . Melee 1 | . . . . 1 Uniques/NPCs Destroyed . | . . . . . Combat | -11 -10 -9 -8 -7 -------- Run | Yrd Mat Mat Mat Fac Hostile Shots Fired 219 | . 35 17 162 5 Missed 77 | . 9 8 57 3 Hits 142 | . 26 9 105 2 Projectile 142 | . 26 9 105 2 Critical Strikes 4 | . . . 4 . Damage Taken 1593 | . 314 115 1130 34 Core 1329 | . 271 101 931 26 Absorbed by Shields . | . . . . . Redirected to Core 866 | . 138 52 650 26 Core Remaining (%) 58 | 100 54 79 2 . Volleys Fired 84 | . 13 9 62 . Largest 2 | . 2 2 2 . Hottest 48 | . 40 40 48 . Shots Fired 168 | . 26 18 124 . Gun 168 | . 26 18 124 . Cannon . | . . . . . Launcher . | . . . . . Special . | . . . . . Kinetic 168 | . 26 18 124 . Thermal . | . . . . . Explosive . | . . . . . Electromagnetic . | . . . . . Robot Hit Streak 10 | . 7 8 10 . Robot Miss Streak 5 | . 5 1 3 . Penetration Max . | . . . . . Secondary Targets 10 | . 1 . 9 . Max Gunslinging Chain 1 | . 1 . 1 . Shots Hit Robots 115 | . 14 14 85 2 Core Hits 44 | . 3 6 34 1 Critical Kills . | . . . . . Critical Parts Destroyed 1 | . . 1 . . Critical Strikes 1 | . . 1 . . Destroy 1 | . . 1 . . Melee Attacks 4 | . . . . 4 Impact . | . . . . . Slashing 4 | . . . . 4 Piercing . | . . . . . Sneak Attacks . | . . . . . Combat Hostiles . | . . . . . Follow-up Attacks . | . . . . . Damage Inflicted 1701 | . 164 155 1271 111 Guns 1590 | . 164 155 1271 . Cannons . | . . . . . Explosions . | . . . . . Melee 111 | . . . . 111 Ramming . | . . . . . Kinetic 1590 | . 164 155 1271 . Thermal . | . . . . . Explosive . | . . . . . Electromagnetic . | . . . . . Impact . | . . . . . Slashing 111 | . . . . 111 Piercing . | . . . . . Highest Corruption . | . . . . . Average Corruption . | . . . . . Corruption Purged . | . . . . . Corruption Blocked . | . . . . . Overload Shots . | . . . . . Overflow Damage . | . . . . . Projectiles . | . . . . . Explosions . | . . . . . Melee . | . . . . . Knockbacks . | . . . . . Impact . | . . . . . Kinetic . | . . . . . Secondary . | . . . . . Self-Inflicted Damage . | . . . . . Shots . | . . . . . Rammed . | . . . . . Targets Rammed . | . . . . . Kicked . | . . . . . Crushed . | . . . . . Highest Temperature 57 | . . 6 57 . Average Temperature 10 | . . 4 10 . Received Heat Transfer 426 | . 24 51 333 18 Siege Activations . | . . . . . Martial Activations . | . . . . . Shielding Activations . | . . . . . Robots Disrupted . | . . . . . Combat Hostiles . | . . . . . Robots Corrupted . | . . . . . Combat Hostiles . | . . . . . Parts Fried . | . . . . . Impact Corruptions . | . . . . . Robots Melted . | . . . . . Combat Hostiles . | . . . . . Parts Melted . | . . . . . Heat Transferred . | . . . . . Parts Sabotaged . | . . . . . Parts Stolen . | . . . . . Parts Stripped . | . . . . . Power Chain Reactions . | . . . . . Alert | -11 -10 -9 -8 -7 ------- Run | Yrd Mat Mat Mat Fac Maximum Alert Level 2 | . . . 2 1 Low Security (%) 56 | 100 100 100 48 . Level 1 24 | . . . 18 100 Level 2 18 | . . . 33 . Level 3 . | . . . . . Level 4 . | . . . . . Level 5 . | . . . . . High Security . | . . . . . Max Security . | . . . . . Peak Influence 558 | . 60 117 558 253 Initial 249 | . . 20 44 249 Average 184 | . 25 30 257 231 Influence Increases 994 | . 73 157 730 34 Destroy 0b10 Robot/C 580 | . 60 60 440 20 Destroy 0b10 Robot/NC 5 | . . 5 . . Destroy Leader 120 | . 10 20 80 10 Successful Hack 19 | . 3 12 . 4 Select Force Hacks 30 | . . . 30 . Partial Spotted 75 | . . . 75 . Lose Combat Pursuer 165 | . . 60 105 . Influence Decreases 761 | . 23 100 287 351 Entered New Map 394 | . . 30 63 301 Time Decay 357 | . 23 70 214 50 Lost Ally 10 | . . . 10 . Squads Dispatched 8 | . 2 1 2 3 Investigation 6 | . 1 1 2 2 Extermination . | . . . . . Reinforcement 2 | . 1 . . 1 Assault . | . . . . . Garrison . | . . . . . Intercept . | . . . . . Searches Triggered . | . . . . . Construction Impeded . | . . . . . Haulers Reinforced . | . . . . . Active Scanning Responses . | . . . . . Cargo Convoy Interrupts . | . . . . . Stealth | -11 -10 -9 -8 -7 --------- Run | Yrd Mat Mat Mat Fac Distress Signals 5 | . . 3 2 . Communications Jammed . | . . . . . Distress Signals . | . . . . . Times Spotted 57 | . 6 13 34 4 Peak Tracking Total 11 | . 3 9 11 2 Tactical Retreats 6 | . . 2 4 . Traps | -11 -10 -9 -8 -7 ------- Run | Yrd Mat Mat Mat Fac Traps Triggered 2 | . 1 . 1 . Indirectly . | . . . . . Trap Hack Attempts . | . . . . . Triggered . | . . . . . Disarmed . | . . . . . Reprogrammed . | . . . . . Reused . | . . . . . Traps Extracted . | . . . . . Installed . | . . . . . Triggered . | . . . . . Machines | -11 -10 -9 -8 -7 ---------- Run | Yrd Mat Mat Mat Fac Machines Disabled . | . . . . . Max in Single Turn . | . . . . . Machines Repaired . | . . . . . Machines Dismantled . | . . . . . Machines Sabotaged . | . . . . . Overloaded Fab Kills . | . . . . . Hacking | -11 -10 -9 -8 -7 --------- Run | Yrd Mat Mat Mat Fac Machines Accessed 9 | . 2 3 2 2 Terminals 7 | . 2 3 1 1 Fabricators 1 | . . . . 1 Repair Stations . | . . . . . Recycling Units . | . . . . . Scanalyzers 1 | . . . 1 . Garrison Access . | . . . . . Total Hacks 23 | . 2 8 5 8 Successful 15 | . 2 5 2 6 Failed 8 | . . 3 3 2 Catastrophic . | . . . . . Database Lockouts . | . . . . . Manual 20 | . 2 8 5 5 Terminals 18 | . 2 8 4 4 Fabricators 4 | . . . . 4 Repair Stations . | . . . . . Recycling Units . | . . . . . Scanalyzers 1 | . . . 1 . Garrison Access . | . . . . . Terminal Hacks 7 | . 1 3 1 2 Part Schematic 2 | . . . . 2 Terminal Index 1 | . . 1 . . Registered Components 3 | . 1 1 1 . Registered Prototypes 1 | . . 1 . . Fabricator Hacks 3 | . . . . 3 Network Status 1 | . . . . 1 Load Schematic 1 | . . . . 1 Build 1 | . . . . 1 Repair Station Hacks . | . . . . . Recycling Unit Hacks . | . . . . . Scanalyzer . | . . . . . Garrison Access Hacks . | . . . . . Unauthorized Hacks 5 | . 1 2 1 1 Terminals 3 | . 1 2 . . Assimilate 1 | . . 1 . . Botnet 2 | . 1 1 . . Fabricators 1 | . . . . 1 Prioritize 1 | . . . . 1 Repair Stations . | . . . . . Recycling Units . | . . . . . Scanalyzers 1 | . . . 1 . Extract 1 | . . . 1 . Garrison Access . | . . . . . Data Cores Recovered . | . . . . . Used . | . . . . . Hacking Detections 5 | . . 2 1 2 Full Trace Events 3 | . . 1 . 2 Feedback Events . | . . . . . Feedback Blocked . | . . . . . Robot Schematics Acquired . | . . . . . Robots Built . | . . . . . Authchips . | . . . . . Time . | . . . . . Total Robot Build Rating . | . . . . . Part Schematics Acquired 6 | . . . 4 2 Parts Built 2 | . . . . 2 Authchips . | . . . . . Time 42 | . . . . 42 Total Part Build Rating 8 | . . . . 8 Parts Repaired . | . . . . . Time . | . . . . . Parts Recycled . | . . . . . Recycled Matter . | . . . . . Retrieved Matter . | . . . . . Retrieved Components . | . . . . . Parts Scanalyzed . | . . . . . Part Schematics Acquired . | . . . . . Parts Damaged . | . . . . . Bothacking | -11 -10 -9 -8 -7 ------------ Run | Yrd Mat Mat Mat Fac Used RIF Installer . | . . . . . Robots Hacked . | . . . . . Non-combat . | . . . . . Combat . | . . . . . Robot Hacks Applied . | . . . . . Relay Couplers Released . | . . . . . Fabnet Peak Effective % . | . . . . . Robots Rewired . | . . . . . Allies Hacked . | . . . . . Hacks Repelled . | . . . . . Allies | -11 -10 -9 -8 -7 -------- Run | Yrd Mat Mat Mat Fac Total Allies 1 | . . 1 . . Largest Group 1 | . . 1 1 . Highest-Rated Group 10 | . . 10 10 . Highest-Rated Ally 10 | . . 10 10 . Total Orders . | . . . . . Ally Attacks . | . . . . . Total Damage . | . . . . . Kills . | . . . . . Allies Corrupted . | . . . . . Allies Melted . | . . . . . Intel | -11 -10 -9 -8 -7 ------- Run | Yrd Mat Mat Mat Fac Active Infowar (turns) . | . . . . . Robot Analysis Total . | . . . . . Derelict Logs Recovered . | . . . . . Drone Launches . | . . . . . Drone Recoveries . | . . . . . Exploration | -11 -10 -9 -8 -7 ------------- Run | Yrd Mat Mat Mat Fac Turns Passed 817 | 27 77 140 454 119 Spaces Moved 1111 | 47 77 260 576 151 Core 82 | 47 35 . . . Treads . | . . . . . Legs . | . . . . . Wheels . | . . . . . Hover . | . . . . . Flight 1029 | . 42 260 576 151 Fastest Speed 32 | 50 37 32 32 37 Average Speed 36 | 50 42 36 34 37 Slowest Speed 120 | 50 50 37 120 37 Overloaded Moves . | . . . . . Propulsion Burnouts . | . . . . . Robots Hopped 21 | . 2 . 19 . Potential Cave-ins . | . . . . . Cave-ins Triggered . | . . . . . Exploration Rate (%) 22 | 4 17 33 51 5 Regions Visited 4 Branch Regions . Pre-discovered Areas . | . . . . . Known Exits Taken . | . . . . . Unknown Exits Taken 4 | 1 1 1 1 . Scrap Searched . | . . . . . Spaces Dug . | . . . . . Terrain Destroyed . | . . . . . Melee . | . . . . . Projectile . | . . . . . AOE . | . . . . . Terrain Rammed . | . . . . . Walls Destroyed . | . . . . . Machines Disabled . | . . . . . Actions | -11 -10 -9 -8 -7 --------- Run | Yrd Mat Mat Mat Fac Total 1338 | 48 93 288 698 211 Wait 95 | . 4 4 37 50 Move 1065 | 46 72 259 537 151 Hop 21 | . 2 . 19 . Pick Up . | . . . . . Fast Attach 12 | 2 2 . 4 4 Attach . | . . . . . Detach . | . . . . . Swap 10 | . . 2 8 . Drop 14 | . . 2 10 2 Fire 84 | . 13 9 62 . Melee 4 | . . . . 4 Ram . | . . . . . Kick . | . . . . . Crush . | . . . . . Escape Stasis . | . . . . . Rewire . | . . . . . Trap . | . . . . . Miscellaneous 33 | . . 12 21 . Route ------- -11/Scrapyard -10/Materials -9/Materials -8/Materials -7/Factory (discovered 1 exit: [*Fac]) History --------- Turn | Location | Event 1 | -11/Scrapyard | Upgraded with Propulsion slot (x1) 1 | -11/Scrapyard | Upgraded with Weapon slot (x1) 9 | -11/Scrapyard | Discovered new exit (range 16) 28 | -11/Scrapyard | Entered Materials 96 | -10/Materials | Discovered new exit (range 14) 105 | -10/Materials | Entered another Materials area 107 | -9/Materials | Reached level 2 179 | -9/Materials | Core integrity fell below 50% 214 | -9/Materials | Discovered new exit (range 16) 245 | -9/Materials | Entered another Materials area 245 | -8/Materials | Accompanied by 1 ally 247 | -8/Materials | Reached level 3 331 | -8/Materials | Discovered new exit (range 12) 407 | -8/Materials | Reached level 4 414 | -8/Materials | Core integrity fell below 50% 533 | -8/Materials | Build established: Hacker-Sprinter 555 | -8/Materials | Reached level 5 576 | -8/Materials | Destroyed 8 combat bots 590 | -8/Materials | Core integrity fell below 20% 699 | -8/Materials | Entered Factory 700 | -7/Factory | Core integrity fell below 50% 700 | -7/Factory | Core integrity fell below 20% 701 | -7/Factory | Reached level 6 713 | -7/Factory | Discovered new exit (range 9) 780 | -7/Factory | Fabricated Greatsword (x2) 783 | -7/Factory | Upgraded with Utility slot (x1) 806 | -7/Factory | Upgraded with Utility slot (x1) 818 | -7/Factory | Destroyed by G-47 Trooper with Particle Gun Last Messages --------------- K-01 Serf pushes I-36 Angel. K-01 Serf latches onto H-55 Commando. K-01 Serf pushes H-55 Commando. K-01 Serf pushes D-53 Grenadier. K-01 Serf collects debris. K-01 Serf releases D-53 Grenadier into floor hatch. K-01 Serf collects debris. U-05 Engineer works on Subcomponent Replicator. Fabricator completes Greatsword. K-01 Serf collects debris. Dropped Lgt. Assault Rifle. Acquired Greatsword. Upgraded: Utility Slot (+1) U-05 Engineer works on Subcomponent Replicator. Acquired Microactuators. G-47 Trooper destroyed. Acquired 30 matter. Upgraded: Utility Slot (+1) Acquired Microactuators. Upgraded: Mass Support (+5) Map ----- +----------------------------------------------------+ | #############??????????????????????????????????? | | #??????????????????????????????????????????????? | | #???????????????"??????????????????????????????? | | #?????????????? "??????? ??????????????????????? | | #???##########?/####### ??????????????????????? | | #??? #? ?????????????????????? | | #???""" """ # ?????????????????????? | | #????"" """ #** ????????????????????? | | #?????? """ #** #???????????????????? | | #???????? #** #???????????????????? | | ###########+## #???????????????????? | | #???????????????????? | | ####+##### T# #???????????????????? | | ?? ??#### """"" #???????????????????? | | """ """ #???# """ " #???????????????????? | | """ """ #???# """ #???????????????????? | | """ """ #???# ! ####??? ????????????? | | #???# ###+####?????????? | | ! #???# #?????????? | | #???# #?????????? | | ????# ^^ """" #?????????? | | ######??????# "F " #?????????? | | ????????????# [ / #?????????? | | ????????????# ###### [ #?????????? | | ????????#####+#############% #?????????? | | ????????# @#%[ #?????????? | | ????????# ! g #?????????? | | ????????# # #?????????? | | ????????# # #?????????? | | ????????# """ """ """ """ # #?????????? | | ????????# """ """ """ """ # #?????????? | | ????????# """ """ """ """ # #?????????? | | ????????################### ????? | | ??????????????????????????# ????? | | ?????????????????????????# ????? | | ?????????????????????????# ?????? | | ?????????????????????????# ?????? | | ?????????????????????????# #####?????? | | ?????????????????????????# #?????????? | | ?????????????????????????######### #?????????? | | ?????????????????????????????????? #?????????? | | ?????????????????????????????????? #?????????? | | ??????????????????????????????????? #?????????? | | ??????????????????????????????????? ??????????? | | ?????????????????????????????????????????????????? | | ?????????????????????????????????????????????????? | | ?????????????????????????????????????????????????? | | ?????????????????????????????????????????????????? | | ?????????????????????????????????????????????????? | | ?????????????????????????????????????????????????? | +----------------------------------------------------+ Best States ------------- Heat Dissipation 25 Energy Generation 10 Energy Capacity 125 Matter Stores 300 Matter Capacity 300 Sight Range 16 Terrain Scan Density 10 Melee Speed Boost 50 Evasion (%) 63 Offensive Hacking 40 Item Schematics ----------------- Hvy. Particle Gun | -8/Materials | Extracted Cesium-ion Thruster | -8/Materials | Extracted Hvy. Particle Cannon | -8/Materials | Extracted Imp. EM Shotgun | -8/Materials | Extracted Greatsword | -7/Factory | Hacked Microactuators | -7/Factory | Hacked Robot Schematics ------------------ None Fabricated ------------ Greatsword | x2 | -7/Factory Repaired ---------- Nothing Alien Tech Used ----------------- None Achievements -------------- None Challenges ------------ None RPGLIKE | -11 -10 -9 -8 -7 --------- Run | Yrd Mat Mat Mat Fac Levels Raised 5 | . . 1 3 1 XP Earned 11189 | 3000 350 1930 4259 1650 XP Spent 10200 | 3000 . . 100 7100 Upgrades 14 | 6 . . 1 7 Propulsion Slot 1 | 1 . . . . Utility Slot 2 | . . . . 2 Weapon Slot 1 | 1 . . . . Mass Support 2 | . . . 1 1 Hack Attack % 8 | 4 . . . 4 Protomatter Created 267 | . . 83 184 . Integrity Restored 720 | . . 249 471 . Core 720 | . . 249 471 . Protomatter Decayed 9 | . . . 9 . Game ------ Seed LatentSapperGun Manual? 0 Play Time 00:14:31 Cumulative 259.8 hours Start 2025.06.06 @ 15:09:32 End 2025.06.06 @ 15:25:38 Sessions 1 Manual Loads 0 Difficulty Rogue Special Mode Winter2019/RPGLIKE Game No. 257 Rogue 68 Adventurer 177 Explorer 12 Win Type - Total 65 Types 19/1/16/2/12/0/4/5/0/6 Lore% 54 Gallery% 53 Achievement% 71 Wizard Run 0 Options --------- Layout 0 ASCII 0 Keyboard 0 Movement Numpad Keybinds 0 Fullscreen 2 Font 12/Smallcaps Map View 83x54 Zoom Use 0% Tactical HUD 0 Map Filters NONE Filters NONE Steam 1 RUN: 5ea60d50-e840-489d-91fc-bf1057f61e7c